[Event "Moja Open Prestige 2022"]
[Site "Kimberley"]
[Date "2022.03.20"]
[Round "4.9"]
[White "Grobbelaar, Jacqui"]
[Black "Bhila, Lindokuhle Adorabell"]
[Result "0-1"]
[ECO "B23"]
[WhiteElo "1522"]
[BlackElo "1281"]
[Annotator "NA RC"]
[PlyCount "148"]
[EventDate "2022.03.19"]
[EventType "swiss"]
[EventCountry "RSA"]
[SourceTitle "playchess.com"]
[Source "ChessBase"]
[SourceQuality "1"]
[TimeControl "5400+30"]

1. e4 {[%emt 1:31:00]} c5 {[%emt 1:31:00]} 2. Nc3 {[%emt 0:00:30]} Nc6 {[%emt 0:00:30]} 3. Bc4 {[%emt 0:00:30]} g6 {[%emt 0:00:30]} 4. d3 {[%emt 0:00:30]} Bg7 {[%emt 0:00:30]} 5. Bg5 {[%emt 0:00:30]} Nf6 {[%emt 0:00:30]} 6. f4 {[%emt 0:00:30]} d6 {[%emt 0:00:30]} 7. h3 {[%emt 0:00:30]} Qb6 {[%emt 0:00:30]} 8. Bxf6 {[%emt 0:00:30]} Bxf6 {[%emt 0:00:30]} 9. Nd5 {[%emt 0:00:30]} Qa5+ {[%emt 0:00:30]} 10. Qd2 {[%emt 0:00:30]} Bh4+ {[%emt 0:00:30]} 11. Kd1 {[%emt 0:00:30]} Qxd2+ {[%emt 0:00:30]} 12. Kxd2 {[%emt 0:00:30]} O-O {[%emt 0:00:30]} 13. Ne2 {[%emt 0:00:30]} e6 {[%emt 0:00:30]} 14. Nc7 {[%emt 0:00:30]} Rb8 {[%emt 0:00:30]} 15. Nb5 {[%emt 0:00:30]} Rd8 {[%emt 0:00:30]} 16. Nbc3 {[%emt 0:00:30]} a6 {[%emt 0:00:30]} 17. a4 {[%emt 0:00:30]} Bf6 {[%emt 0:00:30]} 18. g4 {[%emt 0:00:30]} Na5 {[%emt 0:00:30]} 19. Ba2 {[%emt 0:00:30]} Bd7 {[%emt 0:00:30]} 20. h4 {[%emt 0:00:30]} Bg7 {[%emt 0:00:30]} 21. Raf1 {[%emt 0:00:30]} b5 {[%emt 0:00:30]} 22. axb5 {[%emt 0:00:30]} axb5 {[%emt 0:00:30]} 23. f5 {[%emt 0:00:30]} c4 {[%emt 0:00:30]} 24. f6 {[%emt 0:00:30]} Bf8 {[%emt 0:00:30]} 25. h5 {[%emt 0:00:30]} Bh6+ {[%emt 0:00:30]} 26. Ke1 {[%emt 0:00:30]} g5 {[%emt 0:00:30]} 27. Nd4 {[%emt 0:00:30]} Rdc8 {[%emt 0:00:30]} 28. Rh2 {[%emt 0:00:30]} Rc5 {[%emt 0:00:30]} 29. Nd1 {[%emt 0:00:30]} d5 {[%emt 0:00:30]} 30. b4 {[%emt 0:00:30]} cxb3 {[%emt 0:00:30]} 31. Nxb3 {[%emt 0:00:30]} Nxb3 {[%emt 0:00:30]} 32. Bxb3 {[%emt 0:00:30]} dxe4 {[%emt 0:00:30]} 33. dxe4 {[%emt 0:00:30]} Re5 {[%emt 0:00:30]} 34. Re2 {[%emt 0:00:30]} Bc6 {[%emt 0:00:30]} 35. Rf3 {[%emt 0:00:30]} Rxe4 {[%emt 0:00:30]} 36. Rxe4 {[%emt 0:00:30]} Bxe4 {[%emt 0:00:30]} 37. Re3 {[%emt 0:00:30]} Bc6 {[%emt 0:00:30]} 38. Re5 {[%emt 0:00:30]} Rd8 {[%emt 0:00:30]} 39. Ne3 {[%emt 0:00:30]} Rd4 {[%emt 0:00:30]} 40. Ke2 {[%emt 0:00:30]} Rf4 {[%emt 0:00:30]} 41. Bxe6 {[%emt 0:00:30]} fxe6 {[%emt 0:00:30]} 42. Rxe6 {[%emt 0:00:30]} Bf3+ {[%emt 0:00:30]} 43. Kd2 {[%emt 0:00:30]} Kf7 {[%emt 0:00:30]} 44. Re7+ {[%emt 0:00:30]} Kg8 {[%emt 0:00:30]} 45. Nf5 {[%emt 0:00:30]} Bf8 {[%emt 0:00:30]} 46. f7+ {[%emt 0:00:30]} Kh8 {[%emt 0:00:30]} 47. Re8 {[%emt 0:00:30]} Rxf5 {[%emt 0:00:30]} 48. gxf5 {[%emt 0:00:30]} Kg7 {[%emt 0:00:30]} 49. Rb8 {[%emt 0:00:30]} b4 {[%emt 0:00:30]} 50. h6+ {[%emt 0:00:30]} Kxf7 {[%emt 0:00:30]} 51. Ke3 {[%emt 0:00:30]} g4 {[%emt 0:00:30]} 52. Kd4 {[%emt 0:00:30]} g3 {[%emt 0:00:30]} 53. Ke3 {[%emt 0:00:30]} g2 {[%emt 0:00:30]} 54. Kxf3 {[%emt 0:00:30]} g1=Q {[%emt 0:00:30]} 55. Rb7+ {[%emt 0:00:30]} Kf6 {[%emt 0:00:30]} 56. Rxh7 {[%emt 0:00:30]} Qd1+ {[%emt 0:00:30]} 57. Kg3 {[%emt 0:00:30]} Bd6+ {[%emt 0:00:30]} 58. Kf2 {[%emt 0:00:30]} Qxc2+ {[%emt 0:00:30]} 59. Ke3 {[%emt 0:00:30]} Qxf5 {[%emt 0:00:30]} 60. Rh8 {[%emt 0:00:30]} Kg6 {[%emt 0:00:30]} 61. Rg8+ {[%emt 0:00:30]} Kxh6 {[%emt 0:00:30]} 62. Rg2 {[%emt 0:00:30]} Qf4+ {[%emt 0:00:30]} 63. Ke2 {[%emt 0:00:30]} b3 {[%emt 0:00:30]} 64. Rg1 {[%emt 0:00:30]} Qh2+ {[%emt 0:00:30]} 65. Kf1 {[%emt 0:00:30]} b2 {[%emt 0:00:30]} 66. Rg2 {[%emt 0:00:30]} b1=Q+ {[%emt 0:00:30]} 67. Kf2 {[%emt 0:00:30]} Qc2+ {[%emt 0:00:30]} 68. Ke3 {[%emt 0:00:30]} Qcxg2 {[%emt 0:00:30]} 69. Kd4 {[%emt 0:00:30]} Qe5+ {[%emt 0:00:30]} 70. Kd3 {[%emt 0:00:30]} Qgd5+ {[%emt 0:00:30]} 71. Kc2 {[%emt 0:00:30]} Qe2+ {[%emt 0:00:30]} 72. Kc3 {[%emt 0:00:30]} Qec4+ {[%emt 0:00:30]} 73. Kb2 {[%emt 0:00:30]} Qd2+ {[%emt 0:00:30]} 74. Kb1 {[%emt 0:00:30]} Qca2# {[%emt 0:00:30]} 0-1

[Event "Moja Open Prestige 2022"]
[Site "Kimberley"]
[Date "2022.03.21"]
[Round "5.6"]
[White "Mthunzi, Clive"]
[Black "Mncwabe, Minenhle Junior"]
[Result "0-1"]
[ECO "E09"]
[WhiteElo "1888"]
[BlackElo "1730"]
[Annotator "NA RC"]
[PlyCount "110"]
[EventDate "2022.03.19"]
[EventType "swiss"]
[EventCountry "RSA"]
[SourceTitle "playchess.com"]
[Source "ChessBase"]
[SourceQuality "1"]
[TimeControl "5400+30"]

{[%evp 8,108,24,1,0,32767,32767,32767,32767,32767,35,12,29,0,3,8,8,4,0,0,0,0,4,0,7,0,9,9,32767,32767,0,0,32767,5,0,0,0,0,0,0,5,0,0,0,10,23,20,13,20,23,12,0,0,1,0,0,0,0,0,32767,32767,32767,32767,32767,32767,0,0,0,0,0,0,-351,-439,-1465,-4175,-6079,-6989,-6083,-29971,-29968,-29974,-29976,-29977,-29975,-29979,-29977,32767,32767,32767,32767,-29984,-29983,-29985,-29985,-29986,-29986,-29987,-29989,-29988,-29989,-29990,-29990,-29990]} 1. d4 {[%emt 1:31:00]} d5 {[%emt 1:31:00]} 2. Nf3 {[%emt 0:00:30]} Nf6 {[%emt 0:00:30]} 3. c4 {[%emt 0:00:30]} e6 {[%emt 0:00:30]} 4. Qc2 {[%emt 0:00:30]} Be7 {[%emt 0:00:30]} 5. g3 {[%emt 0:00:30]} O-O {[%emt 0:00:30]} 6. Bg2 {[%emt 0:00:30]} Nbd7 {[%emt 0:00:30]} 7. O-O {[%emt 0:00:30]} c6 {[%emt 0:00:30]} 8. Nbd2 {[%emt 0:00:30]} b6 {[%emt 0:00:30]} 9. e4 {[%emt 0:00:30]} Bb7 {[%emt 0:00:30]} 10. Re1 {[%emt 0:00:30]} dxe4 {[%emt 0:00:30]} 11. Nxe4 {[%emt 0:00:30]} c5 {[%emt 0:00:30]} 12. Nxf6+ {[%emt 0:00:30]} Nxf6 {[%emt 0:00:30]} 13. dxc5 {[%emt 0:00:30]} Bxc5 {[%emt 0:00:30]} 14. Bg5 {[%emt 0:00:30]} h6 {[%emt 0:00:30]} 15. Rad1 {[%emt 0:00:30]} Qe7 {[%emt 0:00:30]} 16. Bxf6 {[%emt 0:00:30]} Qxf6 {[%emt 0:00:30]} 17. Ne5 {[%emt 0:00:30]} Bxg2 {[%emt 0:00:30]} 18. Kxg2 {[%emt 0:00:30]} Rfd8 $1 {[%emt 0:00:30]} 19. Nd7 {[%emt 0:00:30]} Qe7 {[%emt 0:00:30]} 20. Nxc5 {[%emt 0:00:30]} Qxc5 {[%emt 0:00:30]} 21. Qa4 {[%emt 0:00:30]} Rd4 {[%emt 0:00:30]} 22. b3 {[%emt 0:00:30]} a5 {[%emt 0:00:30]} 23. Rxd4 {[%emt 0:00:30]} Qxd4 {[%emt 0:00:30]} 24. Qc6 {[%emt 0:00:30]} Rd8 {[%emt 0:00:30]} 25. Re4 {[%emt 0:00:30]} Qd6 {[%emt 0:00:30]} 26. Qxd6 {[%emt 0:00:30]} Rxd6 {[%emt 0:00:30]} 27. Re5 {[%emt 0:00:30]} Rc6 {[%emt 0:00:30]} 28. Rb5 {[%emt 0:00:30]} Kf8 {[%emt 0:00:30]} 29. c5 {[%emt 0:00:30]} Rxc5 {[%emt 0:00:30]} 30. Rxb6 {[%emt 0:00:30]} g5 {[%emt 0:00:30]} 31. h3 {[%emt 0:00:30]} h5 {[%emt 0:00:30]} 32. Rb8+ {[%emt 0:00:30]} Kg7 {[%emt 0:00:30]} 33. a3 {[%emt 0:00:30]} g4 {[%emt 0:00:30]} 34. h4 {[%emt 0:00:30]} f5 {[%emt 0:00:30]} 35. Kf1 {[%emt 0:00:30]} Kf6 {[%emt 0:00:30]} 36. Ke2 {[%emt 0:00:30]} Ke5 {[%emt 0:00:30]} 37. Kd3 {[%emt 0:00:30]} f4 {[%emt 0:00:30]} 38. gxf4+ {[%emt 0:00:30]} Kxf4 {[%emt 0:00:30]} 39. Rf8+ $2 {[%emt 0:00:30] [#]} (39. b4 $11 axb4 40. axb4 Rd5+ 41. Ke2) 39... Rf5 $1 {[%emt 0:00:30]} 40. Rxf5+ {[%emt 0:00:30]} exf5 {[%emt 0:00:30]} 41. b4 {[%emt 0:00:30]} axb4 {[%emt 0:00:30]} 42. axb4 {[#]} Ke5 $1 {[%emt 0:00:30]} ({Weaker is} 42... Kf3 43. b5 Kxf2 44. b6 $11) 43. b5 {[%emt 0:01:00] [#]} f4 $1 {[%emt 0:00:30]} 44. b6 {[%emt 0:00:30]} Kd6 {[%emt 0:00:30]} 45. Ke4 {[%emt 0:00:30] [#]} f3 $1 {[%emt 0:00:30]} (45... Kc6 46. Kxf4 g3 47. fxg3 Kxb6 48. Kg5 Kc7 49. Kxh5 Kd7 50. Kg6) 46. Ke3 {[%emt 0:00:30]} Kc6 {[%emt 0:00:30]} 47. b7 {[%emt 0:00:30]} Kxb7 {[%emt 0:00:30]} 48. Kd3 {[%emt 0:00:30]} Kc6 {[%emt 0:00:30]} 49. Ke3 {[%emt 0:00:30]} Kd5 {[%emt 0:00:30]} 50. Kd3 {[%emt 0:00:30]} Ke5 {[%emt 0:00:30]} 51. Ke3 Kf5 {[%emt 0:00:30]} 52. Kd2 {[%emt 0:01:00]} Kf4 {[%emt 0:00:30]} 53. Ke1 {[%emt 0:00:30]} g3 {[%emt 0:00:30]} 54. fxg3+ {[%emt 0:00:30]} Kxg3 {[%emt 0:00:30]} 55. Kf1 f2 {[%emt 0:00:30]} 0-1

[Event "Moja Open Prestige 2022"]
[Site "Kimberley"]
[Date "2022.03.21"]
[Round "5.7"]
[White "Palmer, Reegan"]
[Black "Makhosonke, Kuhlase Matthiolus"]
[Result "1/2-1/2"]
[ECO "A25"]
[WhiteElo "1572"]
[BlackElo "1787"]
[Annotator "NA"]
[PlyCount "90"]
[EventDate "2022.03.19"]
[EventType "swiss"]
[EventCountry "RSA"]
[SourceTitle "playchess.com"]
[Source "ChessBase"]
[SourceQuality "1"]
[TimeControl "5400+30"]

1. c4 {[%emt 1:31:00]} e5 {[%emt 1:31:00]} 2. Nc3 {[%emt 0:00:30]} Nc6 {[%emt 0:00:30]} 3. g3 {[%emt 0:00:30]} f5 {[%emt 0:00:30]} 4. Bg2 {[%emt 0:00:30]} Nf6 {[%emt 0:00:30]} 5. e3 {[%emt 0:00:30]} g6 {[%emt 0:00:30]} 6. Nge2 {[%emt 0:00:30]} Bg7 {[%emt 0:00:30]} 7. d4 {[%emt 0:00:30]} d6 {[%emt 0:00:30]} 8. O-O {[%emt 0:00:30]} O-O {[%emt 0:00:30]} 9. Rb1 {[%emt 0:00:30]} a5 {[%emt 0:00:30]} 10. a3 {[%emt 0:00:30]} e4 {[%emt 0:00:30]} 11. f3 {[%emt 0:00:30]} Qe7 {[%emt 0:00:30]} 12. fxe4 {[%emt 0:00:30]} fxe4 {[%emt 0:00:30]} 13. Nf4 {[%emt 0:00:30]} Nd8 {[%emt 0:00:30]} 14. Nfd5 {[%emt 0:00:30]} Qf7 {[%emt 0:00:30]} 15. Nxf6+ {[%emt 0:00:30]} Bxf6 {[%emt 0:00:30]} 16. Nxe4 {[%emt 0:00:30]} Qg7 {[%emt 0:00:30]} 17. Nxf6+ {[%emt 0:00:30]} Rxf6 {[%emt 0:00:30]} 18. b3 {[%emt 0:00:30]} Bf5 {[%emt 0:00:30]} 19. e4 {[%emt 0:00:30]} Bd7 {[%emt 0:00:30]} 20. Bb2 {[%emt 0:00:30]} Rxf1+ {[%emt 0:00:30]} 21. Qxf1 {[%emt 0:00:30]} Nc6 {[%emt 0:00:30]} 22. Qd3 {[%emt 0:00:30]} Rf8 {[%emt 0:00:30]} 23. Re1 {[%emt 0:00:30]} Qf7 {[%emt 0:00:30]} 24. Qe3 {[%emt 0:00:30]} a4 {[%emt 0:00:30]} 25. d5 {[%emt 0:00:30]} Ne5 {[%emt 0:00:30]} 26. Bxe5 {[%emt 0:00:30]} dxe5 {[%emt 0:00:30]} 27. b4 {[%emt 0:00:30]} c6 {[%emt 0:00:30]} 28. Rf1 {[%emt 0:00:30]} Qe7 {[%emt 0:00:30]} 29. Rxf8+ {[%emt 0:00:30]} Kxf8 {[%emt 0:00:30]} 30. Qb6 {[%emt 0:00:30]} Qg5 {[%emt 0:00:30]} 31. Qf2+ {[%emt 0:00:30]} Kg7 {[%emt 0:00:30]} 32. Bf1 {[%emt 0:00:30]} Qc1 {[%emt 0:00:30]} 33. Qf3 {[%emt 0:00:30]} Bh3 {[%emt 0:00:30]} 34. d6 {[%emt 0:00:30]} Bxf1 {[%emt 0:00:30]} 35. Qxf1 {[%emt 0:00:30]} Qxa3 {[%emt 0:00:30]} 36. Qd1 {[%emt 0:00:30]} Qe3+ {[%emt 0:00:30]} 37. Kf1 {[%emt 0:00:30]} Qb3 38. Ke1 {[%emt 0:00:30]} Qxb4+ {[%emt 0:01:00]} 39. Qd2 {[%emt 0:00:30]} Qb1+ {[%emt 0:00:30]} 40. Kf2 {[%emt 0:00:30]} Qh1 {[%emt 0:00:30]} 41. Ke3 {[%emt 0:00:30]} Qg1+ {[%emt 0:00:30]} 42. Kf3 {[%emt 0:00:30]} Qh1+ {[%emt 0:00:30]} 43. Ke3 {[%emt 0:00:30]} Qg1+ {[%emt 0:00:30]} 44. Ke2 {[%emt 0:00:30]} Qxh2+ {[%emt 0:00:30]} 45. Kd1 Qxd2+ {[%emt 0:00:30]} 1/2-1/2

[Event "Moja Open Prestige 2022"]
[Site "Kimberley"]
[Date "2022.03.21"]
[Round "5.10"]
[White "Laubscher, Anzel"]
[Black "Grobbelaar, Jacqui"]
[Result "1/2-1/2"]
[ECO "D52"]
[WhiteElo "1718"]
[BlackElo "1522"]
[Annotator "NA RC"]
[PlyCount "75"]
[EventDate "2022.03.19"]
[EventType "swiss"]
[EventCountry "RSA"]
[SourceTitle "playchess.com"]
[Source "ChessBase"]
[SourceQuality "1"]
[TimeControl "5400+30"]

1. d4 {[%emt 1:31:00]} d5 {[%emt 1:31:00]} 2. c4 {[%emt 0:00:30]} e6 {[%emt 0:00:30]} 3. Nc3 {[%emt 0:00:30]} Nf6 {[%emt 0:00:30]} 4. Bg5 {[%emt 0:00:30]} c6 {[%emt 0:00:30]} 5. Nf3 {[%emt 0:00:30]} Nbd7 {[%emt 0:00:30]} 6. e3 {[%emt 0:00:30]} Qa5 {[%emt 0:00:30]} 7. Bxf6 {[%emt 0:00:30]} Nxf6 {[%emt 0:00:30]} 8. Bd3 {[%emt 0:00:30]} dxc4 {[%emt 0:00:30]} 9. Bxc4 {[%emt 0:00:30]} Nd5 {[%emt 0:00:30]} 10. Qc2 {[%emt 0:00:30]} Nxc3 {[%emt 0:00:30]} 11. bxc3 {[%emt 0:00:30]} Bd6 {[%emt 0:00:30]} 12. O-O {[%emt 0:00:30]} Qh5 {[%emt 0:00:30]} 13. Be2 {[%emt 0:00:30]} Qh6 {[%emt 0:00:30]} 14. g3 {[%emt 0:00:30]} b6 {[%emt 0:00:30]} 15. Nd2 {[%emt 0:00:30]} Bb7 {[%emt 0:00:30]} 16. Bf3 {[%emt 0:00:30]} O-O {[%emt 0:00:30]} 17. c4 {[%emt 0:00:30]} Rfc8 {[%emt 0:00:30]} 18. Rfb1 {[%emt 0:00:30]} b5 {[%emt 0:00:30]} 19. c5 {[%emt 0:00:30]} Bc7 {[%emt 0:00:30]} 20. Rxb5 {[%emt 0:00:30]} Ba6 {[%emt 0:00:30]} 21. Rb2 {[%emt 0:00:30]} e5 {[%emt 0:00:30]} 22. d5 {[%emt 0:00:30]} e4 {[%emt 0:00:30]} 23. Nxe4 {[%emt 0:00:30]} Be5 {[%emt 0:00:30]} 24. Nd6 {[%emt 0:00:30]} Bxb2 {[%emt 0:00:30]} 25. Qxb2 {[%emt 0:00:30]} Rab8 {[%emt 0:00:30]} 26. Qe5 {[%emt 0:00:30]} Rc7 {[%emt 0:00:30]} 27. dxc6 {[%emt 0:00:30]} Qe6 {[%emt 0:00:30]} 28. Qxe6 {[%emt 0:00:30]} fxe6 {[%emt 0:00:30]} 29. Rd1 {[%emt 0:00:30]} Kf8 {[%emt 0:00:30]} 30. Nb7 {[%emt 0:00:30]} Ke7 {[%emt 0:00:30]} 31. a4 {[%emt 0:00:30]} Bxb7 {[%emt 0:00:30]} 32. cxb7 {[%emt 0:00:30]} Rxc5 {[%emt 0:00:30]} 33. Rd4 {[%emt 0:00:30]} e5 {[%emt 0:00:30]} 34. Rh4 {[%emt 0:00:30]} h6 {[%emt 0:00:30]} 35. Rg4 {[%emt 0:00:30]} Kf6 {[%emt 0:00:30]} 36. Rb4 {[%emt 0:00:30]} Ke6 {[%emt 0:00:30]} 37. Rg4 {[%emt 0:00:30]} Kf6 {[%emt 0:00:30]} 38. Rb4 {[%emt 0:00:30]} 1/2-1/2

[Event "Moja Open Prestige 2022"]
[Site "Kimberley"]
[Date "2022.03.21"]
[Round "6.2"]
[White "Horne, Andrew H"]
[Black "Simpson, Michael M"]
[Result "0-1"]
[ECO "A03"]
[WhiteElo "1931"]
[BlackElo "1995"]
[Annotator "NA"]
[PlyCount "66"]
[EventDate "2022.03.19"]
[EventType "swiss"]
[EventCountry "RSA"]
[SourceTitle "playchess.com"]
[Source "ChessBase"]
[SourceQuality "1"]
[TimeControl "5400+30"]

1. f4 {[%emt 0:00:46]} c5 {[%emt 0:03:33]} 2. Nf3 {[%emt 0:01:40]} Nc6 {[%emt 0:01:02]} 3. e3 {[%emt 0:00:37]} d5 {[%emt 0:05:19]} 4. Bb5 {[%emt 0:00:28]} Bg4 {[%emt 0:03:01]} 5. O-O {[%emt 0:00:14]} Nf6 {[%emt 0:03:09]} 6. d3 {[%emt 0:02:38]} Qc7 {[%emt 0:05:47]} 7. Nbd2 {[%emt 0:06:21]} Nd7 {[%emt 0:13:03]} 8. h3 {[%emt 0:06:03]} Bxf3 {[%emt 0:00:21]} 9. Nxf3 {[%emt 0:00:22]} g6 {[%emt 0:05:10]} 10. Qe1 {[%emt 0:18:00]} Bg7 {[%emt 0:00:55]} 11. c3 {[%emt 0:04:00]} a6 {[%emt 0:01:38]} 12. Bxc6 {[%emt 0:00:06]} Qxc6 {[%emt 0:00:38]} 13. Qf2 {[%emt 0:01:05]} b5 {[%emt 0:08:34]} 14. Bd2 {[%emt 0:07:33]} O-O {[%emt 0:06:23]} 15. Qh4 {[%emt 0:03:22]} Rae8 {[%emt 0:05:37]} 16. e4 {[%emt 0:03:45]} dxe4 {[%emt 0:03:16]} 17. dxe4 {[%emt 0:00:03]} Bf6 {[%emt 0:12:51]} 18. Ng5 {[%emt 0:07:16]} Bxg5 {[%emt 0:00:08]} 19. fxg5 {[%emt 0:00:03]} f6 {[%emt 0:02:13]} 20. Rae1 {[%emt 0:05:24]} Ne5 {[%emt 0:00:35]} 21. Qg3 {[%emt 0:10:37]} Rd8 {[%emt 0:01:05]} 22. Bf4 {[%emt 0:03:18]} Nd3 {[%emt 0:00:55]} 23. gxf6 {[%emt 0:00:53]} exf6 {[%emt 0:00:52]} 24. Bh6 {[%emt 0:03:46]} Rf7 {[%emt 0:05:14]} 25. Re2 {[%emt 0:03:45]} Qe6 {[%emt 0:01:41]} 26. b3 {[%emt 0:04:43]} c4 {[%emt 0:02:36]} 27. Rd1 {[%emt 0:01:01]} Rfd7 {[%emt 0:00:16]} 28. Re3 {[%emt 0:01:39]} Ne5 {[%emt 0:02:38]} 29. Rde1 {[%emt 0:01:43]} cxb3 {[%emt 0:00:23]} 30. axb3 {[%emt 0:00:27]} Qxb3 {[%emt 0:00:15]} 31. h4 {[%emt 0:00:41]} Rd3 {[%emt 0:01:13]} 32. Qh3 {[%emt 0:02:26]} Rxe3 {[%emt 0:01:07]} 33. Rxe3 {[%emt 0:00:13]} Qd1+ {[%emt 0:00:15]} 0-1

[Event "Moja Open Prestige 2022"]
[Site "Kimberley"]
[Date "2022.03.21"]
[Round "6.3"]
[White "Mathebula, Xolani Cebo"]
[Black "Karsten, Jan"]
[Result "1-0"]
[ECO "C01"]
[WhiteElo "1752"]
[BlackElo "1679"]
[Annotator "NA"]
[PlyCount "53"]
[EventDate "2022.03.19"]
[EventType "swiss"]
[EventCountry "RSA"]
[SourceTitle "playchess.com"]
[Source "ChessBase"]
[SourceQuality "1"]
[TimeControl "5400+30"]

1. e4 {[%emt 0:15:23]} e6 {[%emt 0:00:49]} 2. d4 {[%emt 0:01:08]} d5 {[%emt 0:00:01]} 3. Nc3 {[%emt 0:00:12]} Bb4 {[%emt 0:00:21]} 4. exd5 {[%emt 0:00:16]} exd5 {[%emt 0:00:04]} 5. Bd3 {[%emt 0:00:27]} Nf6 {[%emt 0:00:19]} 6. Nge2 {[%emt 0:00:06]} O-O {[%emt 0:00:19]} 7. Bg5 {[%emt 0:00:19]} c6 {[%emt 0:00:15]} 8. Qd2 {[%emt 0:00:17]} Be7 {[%emt 0:00:46]} 9. f3 {[%emt 0:00:57]} Nbd7 {[%emt 0:01:37]} 10. h4 {[%emt 0:06:39]} Re8 {[%emt 0:01:09]} 11. O-O-O {[%emt 0:00:12]} b5 {[%emt 0:01:02]} 12. Ng3 {[%emt 0:01:57]} a5 {[%emt 0:01:24]} 13. Nf5 {[%emt 0:00:10]} Bf8 {[%emt 0:00:12]} 14. g4 {[%emt 0:00:20]} a4 {[%emt 0:01:06]} 15. h5 {[%emt 0:00:46]} b4 {[%emt 0:01:54]} 16. Ne2 {[%emt 0:00:16]} Qb6 {[%emt 0:06:45]} 17. Bf4 {[%emt 0:04:09]} c5 {[%emt 0:08:58]} 18. g5 {[%emt 0:01:18]} c4 {[%emt 0:02:08]} 19. gxf6 {[%emt 0:00:42]} Nxf6 {[%emt 0:06:53]} 20. Be5 {[%emt 0:04:08]} cxd3 {[%emt 0:16:15]} 21. Qxd3 {[%emt 0:02:02]} b3 {[%emt 0:03:07]} 22. a3 {[%emt 0:06:07]} Ba6 {[%emt 0:01:37]} 23. Qd2 {[%emt 0:00:15]} bxc2 {[%emt 0:00:23]} 24. Rdg1 {[%emt 0:01:04]} Bxa3 {[%emt 0:07:00]} 25. Rxg7+ {[%emt 0:00:21]} Kh8 {[%emt 0:38:36]} 26. Rxh7+ {[%emt 0:00:21]} Kg8 {[%emt 0:00:30]} 27. Rg7+ 1-0

[Event "Moja Open Prestige 2022"]
[Site "Kimberley"]
[Date "2022.03.21"]
[Round "6.4"]
[White "Mncwabe, Minenhle Junior"]
[Black "Makhosonke, Kuhlase Matthiolus"]
[Result "1-0"]
[ECO "E17"]
[WhiteElo "1730"]
[BlackElo "1787"]
[Annotator "NA"]
[PlyCount "101"]
[EventDate "2022.03.19"]
[EventType "swiss"]
[EventCountry "RSA"]
[SourceTitle "playchess.com"]
[Source "ChessBase"]
[SourceQuality "1"]
[TimeControl "5400+30"]

1. Nf3 {[%emt 1:31:00]} Nf6 {[%emt 1:31:00]} 2. c4 e6 {[%emt 0:00:30]} 3. g3 {[%emt 0:01:00]} b6 {[%emt 0:00:30]} 4. Bg2 {[%emt 0:00:30]} Bb7 {[%emt 0:00:30]} 5. O-O {[%emt 0:00:30]} c5 {[%emt 0:00:30]} 6. b3 {[%emt 0:00:30]} d5 {[%emt 0:00:30]} 7. cxd5 {[%emt 0:00:30]} exd5 {[%emt 0:00:30]} 8. d4 {[%emt 0:00:30]} Be7 {[%emt 0:00:30]} 9. Bb2 {[%emt 0:00:30]} O-O {[%emt 0:00:30]} 10. Nbd2 {[%emt 0:00:30]} Nbd7 {[%emt 0:00:30]} 11. Rc1 {[%emt 0:00:30]} Rc8 {[%emt 0:00:30]} 12. Nh4 {[%emt 0:00:30]} g6 {[%emt 0:00:30]} 13. Nhf3 {[%emt 0:00:30]} Ne4 {[%emt 0:00:30]} 14. dxc5 {[%emt 0:00:30]} Ndxc5 {[%emt 0:00:30]} 15. Nd4 {[%emt 0:00:30]} Bf6 {[%emt 0:00:30]} 16. b4 {[%emt 0:00:30]} Nxd2 {[%emt 0:00:30]} 17. Qxd2 {[%emt 0:00:30]} Ne4 {[%emt 0:00:30]} 18. Qd3 {[%emt 0:00:30]} Qe7 {[%emt 0:00:30]} 19. a3 {[%emt 0:00:30]} Bg5 {[%emt 0:00:30]} 20. f4 {[%emt 0:00:30]} Bf6 {[%emt 0:00:30]} 21. Bh3 {[%emt 0:00:30]} Rxc1 {[%emt 0:00:30]} 22. Rxc1 {[%emt 0:00:30]} Nd6 {[%emt 0:00:30]} 23. Nc6 {[%emt 0:00:30]} Bxc6 {[%emt 0:00:30]} 24. Bxf6 {[%emt 0:00:30]} Qxf6 {[%emt 0:00:30]} 25. Rxc6 {[%emt 0:00:30]} Qa1+ {[%emt 0:00:30]} 26. Bf1 {[%emt 0:00:30]} Nc4 {[%emt 0:00:30]} 27. e4 {[%emt 0:00:30]} Re8 {[%emt 0:00:30]} 28. e5 {[%emt 0:00:30]} Qxa3 {[%emt 0:00:30]} 29. Qxa3 {[%emt 0:00:30]} Nxa3 {[%emt 0:00:30]} 30. Bd3 {[%emt 0:00:30]} Nc4 {[%emt 0:00:30]} 31. Bxc4 {[%emt 0:00:30]} dxc4 {[%emt 0:00:30]} 32. b5 {[%emt 0:00:30]} Rd8 {[%emt 0:00:30]} 33. Rxc4 {[%emt 0:00:30]} Rd1+ {[%emt 0:00:30]} 34. Kg2 {[%emt 0:00:30]} Rd2+ {[%emt 0:00:30]} 35. Kg1 {[%emt 0:00:30]} Rb2 {[%emt 0:00:30]} 36. Rc7 {[%emt 0:00:30]} Rxb5 {[%emt 0:00:30]} 37. Rxa7 {[%emt 0:00:30]} Rb2 {[%emt 0:00:30]} 38. Rb7 {[%emt 0:00:30]} b5 {[%emt 0:00:30]} 39. h3 {[%emt 0:00:30]} h5 {[%emt 0:00:30]} 40. Kf1 {[%emt 0:00:30]} b4 {[%emt 0:00:30]} 41. g4 {[%emt 0:00:30]} h4 {[%emt 0:00:30]} 42. f5 {[%emt 0:00:30]} g5 {[%emt 0:00:30]} 43. f6 {[%emt 0:00:30]} b3 {[%emt 0:00:30]} 44. Rb8+ {[%emt 0:00:30]} Kh7 {[%emt 0:00:30]} 45. e6 {[%emt 0:00:30]} Rb1+ {[%emt 0:00:30]} 46. Kf2 {[%emt 0:00:30]} Rb2+ {[%emt 0:00:30]} 47. Kf3 {[%emt 0:00:30]} Rh2 {[%emt 0:00:30]} 48. exf7 {[%emt 0:00:30]} Rxh3+ {[%emt 0:00:30]} 49. Ke4 {[%emt 0:00:30]} Rg3 {[%emt 0:00:30]} 50. f8=Q {[%emt 0:00:30]} Rxg4+ {[%emt 0:00:30]} 51. Ke5 {[%emt 0:00:30]} 1-0

[Event "Moja Open Prestige 2022"]
[Site "Kimberley"]
[Date "2022.03.21"]
[Round "6.5"]
[White "Van Zyl, Charlize"]
[Black "Mlahleki, Vusimuzi"]
[Result "0-1"]
[ECO "E11"]
[WhiteElo "1691"]
[BlackElo "1980"]
[Annotator "NA"]
[PlyCount "50"]
[EventDate "2022.03.19"]
[EventType "swiss"]
[EventCountry "RSA"]
[SourceTitle "playchess.com"]
[Source "ChessBase"]
[SourceQuality "1"]
[TimeControl "5400+30"]

1. d4 {[%emt 1:31:00]} Nf6 {[%emt 1:31:00]} 2. c4 {[%emt 0:00:30]} e6 {[%emt 0:00:30]} 3. g3 {[%emt 0:00:30]} Bb4+ {[%emt 0:00:30]} 4. Bd2 {[%emt 0:00:30]} a5 {[%emt 0:00:30]} 5. Bg2 {[%emt 0:00:30]} d6 {[%emt 0:00:30]} 6. Nf3 {[%emt 0:00:30]} Nbd7 {[%emt 0:00:30]} 7. O-O {[%emt 0:00:30]} e5 {[%emt 0:00:30]} 8. e3 {[%emt 0:00:30]} Bxd2 {[%emt 0:00:30]} 9. Nfxd2 {[%emt 0:00:30]} O-O $14 {[%emt 0:00:30]} 10. Nc3 {[%emt 0:00:30]} c6 {[%emt 0:00:30]} 11. Qc2 {[%emt 0:00:30]} Qb6 {[%emt 0:00:30]} 12. Rfd1 {[%emt 0:00:30]} exd4 {[%emt 0:00:30]} 13. Na4 {[%emt 0:00:30]} Qa7 {[%emt 0:00:30]} 14. exd4 {[%emt 0:00:30]} Qxd4 {[%emt 0:00:30]} 15. Ne4 {[%emt 0:00:30]} Qe5 {[%emt 0:00:30]} 16. Nxd6 {[%emt 0:00:30]} Nc5 {[%emt 0:00:30]} 17. Nb6 {[%emt 0:00:30]} Bg4 {[%emt 0:00:30]} 18. f3 {[%emt 0:00:30]} Rad8 {[%emt 0:00:30]} 19. Nxb7 {[%emt 0:00:30]} Bf5 {[%emt 0:00:30]} 20. Qf2 {[%emt 0:00:30]} Nxb7 {[%emt 0:00:30]} 21. g4 {[%emt 0:00:30]} Bxg4 {[%emt 0:00:30]} 22. Re1 {[%emt 0:00:30]} Qc7 {[%emt 0:00:30]} 23. fxg4 {[%emt 0:00:30]} Nxg4 {[%emt 0:00:30]} 24. Qg3 {[%emt 0:00:30]} Qxb6+ {[%emt 0:00:30]} 25. Kf1 {[%emt 0:00:30]} Rd2 {[%emt 0:00:30]} 0-1